bitfinex/quotes_SOLUSD_20251031
["timestamp","ask_amount","ask_price","bid_price","bid_amount"]
[1761944342068,3.94387529,187.23,187.21,9.3980959]
[1761944342267,0.65,187.25,187.21,9.3980959]
[1761944342497,3.94391621,187.24,187.21,9.3980959]
[1761944342689,0.65,187.25,187.21,9.3980959]
[1761944342993,3.94402808,187.24,187.21,9.3980959]
[1761944343162,0.65,187.25,187.21,9.3980959]
[1761944343360,3.94401595,187.24,187.21,9.3980959]
[1761944343572,0.65,187.25,187.21,9.3980959]
[1761944343795,3.94401685,187.24,187.21,9.3980959]
[1761944343996,0.65,187.25,187.21,9.3980959]
[1761944344287,3.94401724,187.24,187.22,0.71]
[1761944344494,0.65,187.26,187.22,0.71]
[1761944344694,3.94406018,187.25,187.22,0.71]
[1761944344893,3.94406018,187.24,187.22,0.71]
[1761944345078,0.65,187.26,187.22,0.71]
[1761944345274,3.94399701,187.25,187.22,62.51]
[1761944345488,3.94399701,187.24,187.22,62.51]
[1761944345790,0.65,187.26,187.22,67.85117044]
[1761944345975,3.94416622,187.25,187.22,67.85117044]
[1761944346292,0.2,187.28,187.24,3.34672157]
[1761944346499,3.94490945,187.27,187.24,3.34672157]
[1761944346668,3.94490945,187.26,187.24,4.05672157]
[1761944346991,3.94490945,187.25,187.24,4.05672157]
[1761944347486,3.94490945,187.25,187.24,9.39746072]
[1761944348672,3.94490945,187.27,187.24,9.39746072]
[1761944348895,3.94490945,187.26,187.24,9.39746072]
[1761944349190,3.94490945,187.25,187.24,9.39746072]
[1761944350296,3.94490945,187.27,187.24,9.39746072]
[1761944350495,3.94490945,187.26,187.25,9.3971755]
[1761944351286,3.94490945,187.26,187.25,3.34672157]
[1761944351599,3.94490945,187.26,187.25,4.05672157]
[1761944352003,3.44490945,187.26,187.25,4.05672157]
[1761944352206,3.44490945,187.26,187.25,3.34672157]
[1761944352501,0.2,187.28,187.25,8.68710511]
[1761944352710,0.85,187.28,187.24,3.34672157]
[1761944353001,4.19672157,187.28,187.23,13.13554926]
[1761944353181,0.65,187.27,187.23,13.13554926]
[1761944353391,0.65,187.27,187.23,13.84554926]
[1761944353909,0.65,187.27,187.21,4.05672157]
[1761944354210,3.99672157,187.27,187.22,8.68802416]
[1761944354403,3.99672157,187.27,187.22,9.39802416]
[1761944354604,0.65,187.26,187.22,9.39802416]
[1761944356785,4.19672157,187.28,187.23,6.0510016]
[1761944357202,0.65,187.27,187.23,5.3410016]
[1761944357582,0.65,187.27,187.23,6.0510016]
[1761944358504,0.65,187.27,187.21,3.34672157]
[1761944358505,3.99672157,187.27,187.21,3.34672157]
[1761944358726,3.99672157,187.27,187.21,8.68824645]
[1761944358888,0.7,187.26,187.21,8.68824645]
[1761944359085,0.7,187.26,187.21,9.39824645]
[1761944359289,0.7,187.26,187.22,0.71]
[1761944360081,0.7,187.26,187.22,6.05126136]
[1761944361308,0.7,187.26,187.22,3.34672157]
[1761944361506,4.04672157,187.26,187.21,8.68831657]
[1761944361808,4.04672157,187.26,187.21,9.39831657]
[1761944362018,0.7,187.25,187.21,9.39831657]
[1761944362429,0.7,187.25,187.21,8.68831657]
[1761944362608,0.7,187.25,187.21,9.39831657]
[1761944362801,0.7,187.25,187.22,3.34672157]
[1761944362997,4.04672157,187.27,187.22,4.05672157]
[1761944363304,0.7,187.26,187.22,9.39801811]
[1761944364122,3.94982666,187.25,187.22,9.39801811]
[1761944364298,3.94982666,187.24,187.22,9.39801811]
[1761944364620,3.94982666,187.23,187.22,6.05129654]
[1761944365827,3.94982666,187.23,187.21,8.68826855]
[1761944366024,3.94982666,187.22,187.21,9.37826855]
[1761944366814,3.94768542,187.22,187.21,9.37826855]
[1761944367919,3.94768542,187.22,187.21,19.16709624]
[1761944368732,3.94768542,187.22,187.21,80.96709624]
[1761944371339,3.94768542,187.22,187.21,79.7604606]
[1761944372535,3.94768542,187.22,187.21,77.62037467]
[1761944372723,3.94768542,187.22,187.21,79.7604606]
[1761944372936,0.67,187.27,187.22,9.78882769]
[1761944373229,3.94514244,187.26,187.25,2.14008593]
[1761944373415,3.94514244,187.26,187.25,2.83008593]
[1761944376108,3.94514244,187.26,187.25,0.69]
[1761944376835,6.75522837,187.26,187.22,61.8]
[1761944377004,2.14008593,187.24,187.22,61.8]
[1761944377212,6.08522837,187.23,187.19,61.8]
[1761944377527,6.75522837,187.22,187.19,61.8]
[1761944377724,3.94514244,187.21,187.18,5.34217921]
[1761944377918,3.94514244,187.2,187.18,5.34217921]
[1761944378227,3.94514244,187.19,187.18,5.34217921]
[1761944378543,3.94514244,187.19,187.18,0.69]
[1761944378950,3.94514244,187.19,187.18,6.03245111]
[1761944379514,3.94514244,187.19,187.18,8.17253704]
[1761944381266,3.94514244,187.19,187.18,2.83008593]
[1761944381659,3.94514244,187.19,187.18,8.17253704]
[1761944382059,3.94514244,187.19,187.18,5.34245111]
[1761944383152,3.94514244,187.19,187.16,67.14293875]
[1761944383347,6.7491216,187.18,187.15,5.34327328]
[1761944383550,3.93903567,187.17,187.15,6.03327328]
[1761944383863,2.14008593,187.18,187.15,6.03327328]
[1761944384058,3.93891341,187.17,187.15,6.03327328]
[1761944384260,0.67,187.19,187.15,0.69]
[1761944384457,6.07757735,187.18,187.15,0.69]
[1761944384662,3.93749142,187.17,187.15,0.69]
[1761944384967,2.14008593,187.18,187.15,0.69]
[1761944385175,3.93851009,187.17,187.15,6.03330627]
[1761944385349,0.67,187.19,187.15,6.03330627]
[1761944385670,6.07740673,187.18,187.15,6.03330627]
[1761944385855,3.9373208,187.17,187.15,6.03330627]
[1761944386054,2.81008593,187.19,187.15,6.03330627]
[1761944386279,3.93617498,187.18,187.15,6.03330627]
[1761944386575,3.93617498,187.17,187.15,6.03330627]
[1761944386763,2.81008593,187.19,187.15,6.03330627]
[1761944387073,3.93619474,187.18,187.15,0.69]
[1761944387371,2.81008593,187.19,187.15,0.69]
[1761944387576,3.93525954,187.18,187.15,0.69]
[1761944387747,2.81008593,187.19,187.15,0.69]
[1761944387949,3.93525954,187.18,187.15,0.69]
[1761944388149,2.81008593,187.19,187.15,0.69]
[1761944388375,3.93441201,187.18,187.15,0.69]
[1761944388556,2.14008593,187.18,187.15,0.69]
[1761944389260,2.81008593,187.19,187.15,6.03322285]
[1761944389573,3.93364579,187.18,187.15,6.03322285]
[1761944389768,0.67,187.19,187.15,6.03322285]
[1761944389979,3.93364618,187.18,187.15,6.03322285]
[1761944390166,2.81008593,187.19,187.15,6.03322285]
[1761944390366,3.93298205,187.18,187.16,0.69]
[1761944391178,2.81008593,187.2,187.16,0.69]
[1761944391480,3.93239112,187.19,187.16,0.69]
[1761944391682,3.93239112,187.18,187.16,0.69]
[1761944391873,2.81008593,187.2,187.16,0.69]
[1761944392058,3.93239189,187.19,187.16,0.69]
[1761944392259,3.93239189,187.18,187.16,6.0329801]
[1761944392460,2.81008593,187.2,187.16,0.69]
[1761944392765,3.93192013,187.19,187.15,5.34324854]
[1761944392966,3.93192013,187.18,187.15,8.17333447]
[1761944393378,3.93192013,187.18,187.16,0.69]
[1761944393674,23.40208593,187.21,187.17,5.34273654]
[1761944393855,6.74167727,187.2,187.16,6.03294463]
[1761944394055,3.93159134,187.19,187.16,6.03294463]
[1761944394271,2.81008593,187.2,187.16,6.03294463]
[1761944394272,3.93159134,187.18,187.16,6.03294463]
[1761944394479,0.67,187.2,187.16,5.34294463]
[1761944394684,3.93136988,187.19,187.17,0.69]
[1761944394864,3.93136988,187.18,187.17,0.69]
[1761944395060,3.93136988,187.18,187.17,6.03266456]
[1761944395265,3.93136988,187.2,187.17,6.03266456]
[1761944395465,3.93136988,187.19,187.17,6.03266456]
[1761944395680,3.93136988,187.18,187.17,6.03266456]
[1761944395884,3.93136988,187.2,187.17,6.03266456]
[1761944396073,3.93136988,187.19,187.17,6.03266456]
[1761944396270,3.93136988,187.18,187.17,6.03266456]
[1761944396581,0.68,187.21,187.18,0.69]
[1761944396875,0.68,187.21,187.18,2.83008593]
[1761944396876,3.93053735,187.21,187.18,2.83008593]
[1761944397079,21.272,187.23,187.18,2.83008593]
[1761944397255,27.34296227,187.22,187.18,0.69]
[1761944397457,3.93087634,187.21,187.18,0.69]
[1761944399080,3.93087634,187.21,187.18,6.03241173]
[1761944399291,8.18628418,187.27,187.2,2.14008593]
[1761944399472,3.93052678,187.26,187.25,2.14008593]
[1761944399670,3.93052678,187.26,187.21,10.47882769]
[1761944399874,4.61072554,187.25,187.2,0.28432314]
[1761944400190,3.93072554,187.24,187.19,10.47882769]
[1761944400498,3.93072554,187.23,187.17,0.69]
[1761944400659,6.75081147,187.22,187.17,0.69]
[1761944400861,3.93072554,187.21,187.17,12.61891362]
[1761944401062,3.93072554,187.21,187.18,5.34245111]
[1761944401262,3.93072554,187.21,187.18,0.69]
[1761944401466,3.93072554,187.21,187.19,2.83008593]
[1761944401686,21.272,187.26,187.2,2.14008593]
[1761944401858,6.7502328,187.25,187.2,2.83008593]
[1761944402063,3.93014687,187.24,187.2,0.69]
[1761944402264,3.93014687,187.23,187.21,0.69]
[1761944402462,3.93014687,187.22,187.21,0.69]
[1761944403692,3.43014687,187.22,187.21,6.031595]
[1761944404295,2.82008593,187.25,187.21,6.031595]
[1761944404774,22.73208593,187.25,187.19,7.48197299]
[1761944404980,0.68,187.24,187.2,10.47882769]
[1761944405476,0.68,187.24,187.21,0.69]
[1761944406198,2.14008593,187.22,187.18,6.03242663]
[1761944406572,2.82008593,187.22,187.18,6.03242663]
[1761944406876,2.14008593,187.19,187.16,71.58882769]
[1761944407077,2.14008593,187.19,187.16,77.62177772]
[1761944407477,2.14008593,187.2,187.17,0.69]
[1761944407794,2.14008593,187.2,187.16,77.62177772]
[1761944408093,2.82008593,187.21,187.17,0.69]
[1761944409378,2.82008593,187.2,187.16,71.58882769]
[1761944409769,0.68,187.19,187.16,76.9318307]
[1761944410366,0.68,187.22,187.17,0.69]
[1761944410594,2.14008593,187.21,187.17,0.69]
[1761944411009,2.82008593,187.21,187.17,0.69]
[1761944411682,2.14008593,187.21,187.17,0.69]
[1761944411880,2.14008593,187.23,187.18,9.78882769]
[1761944412080,21.272,187.24,187.18,73.72891362]
[1761944412280,23.41208593,187.24,187.19,0.69]
[1761944412480,0.68,187.23,187.19,6.03213261]
[1761944412999,23.41208593,187.24,187.19,6.03213261]
[1761944413186,23.41208593,187.24,187.2,0.69]
[1761944413391,22.73208593,187.25,187.2,2.83008593]
[1761944413699,20.592,187.25,187.21,2.14008593]
[1761944413894,20.592,187.25,187.21,2.83008593]
[1761944414098,0.68,187.24,187.2,2.83008593]
[1761944414601,0.68,187.24,187.19,5.34213261]
[1761944414815,2.14008593,187.23,187.18,69.97245836]
[1761944415117,2.82008593,187.24,187.18,69.97245836]
[1761944415604,3.92850958,187.23,187.18,8.17245836]
[1761944415783,3.92850958,187.22,187.18,8.17245836]
[1761944415987,3.92850958,187.21,187.18,8.17245836]
[1761944416309,2.82008593,187.24,187.18,8.17245836]
[1761944416522,3.92890995,187.23,187.18,8.17245836]
[1761944416683,3.92890995,187.22,187.18,8.17245836]
[1761944416885,3.92890995,187.21,187.18,8.17245836]
[1761944417099,3.92958945,187.2,187.18,8.17245836]
[1761944417297,2.82008593,187.24,187.19,7.48224715]
[1761944417493,4.60959529,187.23,187.19,8.17224715]
[1761944417807,3.92959529,187.22,187.19,8.17224715]
[1761944417984,0.68,187.23,187.19,8.17224715]
[1761944417985,3.92959529,187.21,187.19,8.17224715]
[1761944418185,3.92946927,187.2,187.19,8.17224715]
[1761944418393,0.68,187.23,187.19,8.17224715]
[1761944418575,3.92879187,187.22,187.19,8.17224715]
[1761944418777,3.92879187,187.21,187.2,0.69]
[1761944419000,3.92879187,187.21,187.19,5.34216122]
[1761944419177,2.85008593,187.25,187.19,6.03216571]
[1761944419178,3.92879187,187.2,187.19,6.03216571]
[1761944419381,3.92879187,187.2,187.19,8.17225164]
[1761944420193,23.44208593,187.26,187.19,17.96107933]
[1761944420406,3.93152144,187.25,187.21,2.14008593]
[1761944420594,3.93152144,187.24,187.21,2.14008593]
[1761944420795,3.93152144,187.23,187.21,2.83008593]
[1761944420996,3.93152144,187.22,187.21,2.83008593]
[1761944422992,3.93152144,187.22,187.21,0.69]
[1761944424907,3.93152144,187.22,187.21,6.031595]
[1761944425083,3.93152144,187.22,187.21,17.96050862]
[1761944425285,2.83008593,187.25,187.21,0.69]
[1761944425499,3.92763642,187.24,187.21,0.66]
[1761944425704,3.92763642,187.23,187.21,0.66]
[1761944425906,3.9276374,187.22,187.21,0.66]
[1761944426102,20.592,187.26,187.21,12.58891362]
[1761944426315,3.92662006,187.25,187.22,2.14008593]
[1761944426494,3.92662006,187.24,187.22,2.80008593]
[1761944426692,3.92662006,187.23,187.22,2.14008593]
[1761944427195,0.69,187.27,187.23,5.3410244]
[1761944427516,3.92565953,187.26,187.22,8.14133272]
[1761944427814,3.92565953,187.25,187.22,8.14133272]
[1761944428111,2.83008593,187.27,187.22,8.14133272]
[1761944428112,2.83008593,187.27,187.23,0.66]
[1761944428315,3.92424549,187.26,187.23,0.66]
[1761944428609,3.92424549,187.25,187.23,6.00091015]
[1761944428907,0.69,187.27,187.23,6.00091015]
[1761944429114,3.92438394,187.26,187.23,6.00091015]
[1761944429408,3.92438394,187.25,187.23,6.00091015]
[1761944429587,2.83008593,187.27,187.23,6.00091015]
[1761944429782,3.9237576,187.26,187.23,6.00091015]
[1761944429995,3.9237576,187.25,187.23,6.00091015]
[1761944430214,2.83008593,187.27,187.23,6.00091015]
[1761944430414,3.92422901,187.26,187.23,5.34091015]
[1761944430600,0.2,187.28,187.23,5.34091015]
[1761944430601,1e-08,187.28,187.27,9.78882769]
[1761944430917,1e-08,187.28,187.27,42.02558048]
[1761944431085,1e-08,187.28,187.27,33.46523676]
[1761944431282,1e-08,187.28,187.27,33.46458869]
[1761944431805,1e-08,187.28,187.27,33.46523676]
[1761944432107,1e-08,187.28,187.27,35.80532269]
[1761944432491,1e-08,187.28,187.27,41.14520628]
[1761944432885,1e-08,187.28,187.27,38.80512035]
[1761944433108,1e-08,187.28,187.27,9.78882769]
[1761944433409,1e-08,187.28,187.27,15.12871128]
[1761944433705,1e-08,187.28,187.27,9.78882769]
[1761944433882,1e-08,187.28,187.27,15.12871128]
[1761944435191,1e-08,187.28,187.27,19.13175638]
[1761944435909,1e-08,187.28,187.27,18.47175638]
[1761944437598,1e-08,187.28,187.27,19.13175638]
[1761944439020,1e-08,187.28,187.27,80.93175638]
[1761944440096,1e-08,187.28,187.27,77.58871128]
[1761944440601,1e-08,187.28,187.27,80.27175638]
[1761944440806,0.69000001,187.28,187.27,76.92871128]
[1761944441008,1e-08,187.28,187.27,76.92871128]
[1761944441617,1e-08,187.28,187.27,80.27175638]
[1761944442705,1e-08,187.28,187.27,81.21607952]
[1761944445521,1e-08,187.28,187.27,77.87303442]
[1761944445823,1e-08,187.28,187.27,81.21607952]
[1761944451938,1e-08,187.28,187.27,83.35586072]
[1761944452107,0.2,187.33,187.32,3.3430451]
[1761944452314,0.2,187.33,187.32,13.13187279]
[1761944453436,0.2,187.33,187.32,18.47033104]
[1761944454936,0.2,187.33,187.32,28.87353067]
[1761944456752,0.2,187.33,187.32,90.67353066]
[1761944458938,0.9,187.33,187.32,77.54165787]
[1761944460963,0.9,187.33,187.32,15.74165788]
[1761944462138,0.9,187.33,187.32,10.40319963]
[1761944463155,0.9,187.33,187.32,15.74165788]
[1761944463938,0.9,187.33,187.32,19.08470298]
[1761944465468,0.2,187.33,187.32,19.08470298]
[1761944465961,0.9,187.33,187.32,10.40319963]
[1761944466785,21.492,187.33,187.32,10.40319963]
[1761944466943,28.74623267,187.33,187.32,10.40319963]
[1761944467546,34.08440594,187.33,187.32,10.40319963]
[1761944468248,44.48760557,187.33,187.32,10.40319963]
[1761944468569,35.8063872,187.33,187.32,10.40319963]
[1761944468768,28.74623267,187.33,187.32,10.40319963]
[1761944470446,30.17321837,187.33,187.32,10.40319963]
[1761944470645,34.0928721,187.33,187.32,10.40319963]
[1761944471280,28.75469883,187.33,187.32,10.40319963]
[1761944471863,43.88358193,187.33,187.32,10.40319963]
[1761944472866,49.2217552,187.33,187.32,10.40319963]
[1761944473558,43.88358193,187.33,187.32,10.40319963]
[1761944474376,40.54053683,187.33,187.32,10.40319963]
[1761944474672,19.94853683,187.33,187.32,10.40319963]
[1761944474879,4.11965373,187.33,187.32,10.40319963]
[1761944475096,4.11965373,187.33,187.32,29.53353067]
[1761944475097,0.2,187.33,187.32,29.53353067]
[1761944482074,0.2,187.33,187.32,29.81785381]
[1761944482873,0.2,187.33,187.32,91.6178538]
[1761944485273,0.2,187.34,187.33,71.38882768]
[1761944485605,0.2,187.34,187.33,80.78004605]
[1761944487463,0.2,187.34,187.33,101.51420762]
[1761944490575,0.2,187.35,187.34,10.07315083]
[1761944490796,0.2,187.35,187.34,14.12619593]
[1761944491685,0.2,187.36,187.35,71.47315082]
[1761944491997,0.2,187.36,187.35,75.52619592]
[1761944493302,0.2,187.36,187.35,79.65740646]
[1761944494885,0.2,187.36,187.35,78.94740646]
[1761944496119,0.2,187.36,187.35,79.65740646]
[1761944500207,0.2,187.37,187.36,61.19999999]
[1761944500508,0.2,187.37,187.36,94.71180305]
[1761944501296,0.2,187.39,187.38,10.07315083]
[1761944501614,0.2,187.39,187.38,42.05841198]
[1761944502001,0.2,187.39,187.38,36.71189968]
[1761944502323,0.2,187.39,187.38,47.39516083]
[1761944504219,0.2,187.39,187.38,38.84855191]
[1761944505314,0.2,187.39,187.38,47.39516083]
[1761944506602,0.2,187.41,187.4,70.87315082]
[1761944506810,0.2,187.41,187.4,73.00980305]
[1761944507902,0.88,187.41,187.4,70.87315082]
[1761944508095,0.88,187.41,187.4,73.00980305]
[1761944508513,0.2,187.41,187.4,73.00980305]
[1761944508714,0.2,187.41,187.4,78.34598234]
[1761944508900,0.2,187.41,187.4,76.20933011]
[1761944509216,0.88,187.41,187.4,78.0616592]
[1761944509511,0.88,187.41,187.4,17.26165921]
[1761944509905,0.2,187.41,187.4,17.26165921]
[1761944510105,0.88,187.41,187.4,17.26165921]
[1761944510313,0.2,187.41,187.4,17.26165921]
[1761944511321,0.88,187.41,187.4,17.26165921]
[1761944513412,0.88,187.41,187.4,15.12500698]
[1761944513605,0.2,187.41,187.4,17.26165921]
[1761944514012,0.88,187.41,187.4,17.26165921]
[1761944514617,0.2,187.41,187.4,17.26165921]
[1761944515124,0.88,187.41,187.4,17.26165921]
[1761944515327,0.88,187.41,187.4,76.92500698]
[1761944516033,0.88,187.41,187.4,61.8]
[1761944516323,0.88,187.41,187.38,79.06194422]
[1761944516626,0.66,187.4,187.38,79.06194422]
[1761944518907,0.66,187.4,187.38,7.47311653]
[1761944519111,0.66,187.4,187.38,5.3364643]
[1761944520931,0.66,187.4,187.37,7.47363329]
[1761944523211,0.66,187.4,187.38,7.47318195]
[1761944523413,0.2,187.41,187.39,2.13665223]
[1761944523622,0.2,187.41,187.4,11.92547992]
[1761944524031,0.2,187.41,187.4,73.72547992]
[1761944524839,0.2,187.41,187.4,79.06165921]
[1761944527321,0.2,187.41,187.4,79.75165921]
[1761944528843,0.2,187.41,187.4,80.03598235]
[1761944529049,1e-08,187.41,187.4,80.03598235]
[1761944529226,0.2,187.45,187.41,10.76315083]
[1761944529433,0.2,187.45,187.44,12.20980306]
[1761944529628,0.2,187.45,187.44,12.89980306]
[1761944530225,0.2,187.45,187.44,74.69980306]
[1761944531148,0.2,187.45,187.44,80.0348436]
[1761944534948,0.86,187.45,187.44,17.26052046]
[1761944535458,0.2,187.45,187.44,79.06052046]
[1761944536753,0.2,187.45,187.44,79.3448436]
[1761944536958,0.2,187.45,187.44,80.0348436]
[1761944538562,0.2,187.45,187.44,79.3448436]
[1761944538860,0.2,187.45,187.44,79.06052046]
[1761944539457,0.2,187.45,187.44,76.92386823]
[1761944539637,0.2,187.45,187.44,61.8]
[1761944539638,0.87,187.45,187.44,61.8]
[1761944539840,0.87,187.45,187.43,9.78882769]
[1761944540030,0.67,187.44,187.43,11.92547992]
[1761944540945,0.67,187.44,187.43,17.2608051]
[1761944541748,0.2,187.45,187.43,15.12415287]
[1761944541955,0.87,187.45,187.43,17.2608051]
[1761944542342,4.79585087,187.45,187.43,17.2608051]
[1761944542547,0.67,187.44,187.43,17.2608051]
[1761944544667,0.2,187.45,187.43,17.2608051]
[1761944544858,0.87,187.45,187.44,2.13665223]
[1761944545777,0.67,187.44,187.42,5.33555825]
[1761944546277,4.59745071,187.44,187.42,5.33555825]
[1761944546777,0.67,187.43,187.42,5.33555825]
[1761944547180,0.67,187.43,187.42,7.47221048]
[1761944547880,0.67,187.43,187.42,17.26103817]
[1761944548759,0.67,187.43,187.42,15.12438594]
[1761944549950,3.92745071,187.44,187.42,79.06103817]
[1761944550150,4.59745071,187.44,187.42,79.06103817]
[1761944551275,0.67,187.44,187.42,79.06103817]
[1761944552768,0.2,187.45,187.43,11.92547992]
[1761944553197,0.2,187.45,187.44,5.33504054]
[1761944553363,4.79922635,187.45,187.44,5.33504054]
[1761944553679,4.12922635,187.45,187.44,8.67208742]
[1761944553876,0.2,187.45,187.44,18.46091511]
[1761944554281,0.2,187.45,187.44,80.54523825]
[1761944554588,0.2,187.45,187.44,81.20523825]
[1761944559283,0.2,187.46,187.45,71.38882769]
[1761944559473,0.2,187.46,187.45,75.38587457]
[1761944559783,0.2,187.46,187.45,75.67019771]
[1761944559962,0.2,187.46,187.45,81.00495364]
[1761944561388,0.2,187.51,187.47,0.28432314]
[1761944561565,0.2,187.51,187.5,30.38082769]
[1761944561767,0.87,187.51,187.5,33.71787457]
[1761944561986,0.87,187.51,187.5,13.12587457]
[1761944562285,0.87,187.51,187.5,18.4592079]
[1761944562972,0.2,187.51,187.5,18.4592079]
[1761944565581,0.87,187.51,187.5,18.4592079]
[1761944565887,0.87,187.51,187.48,5.33386203]
[1761944566181,0.67,187.5,187.48,5.33386203]
[1761944572100,3.33704688,187.49,187.43,9.78882769]
[1761944572285,3.33704688,187.48,187.43,9.78882769]
[1761944572479,4.00704688,187.48,187.43,9.78882769]
[1761944572682,0.67,187.47,187.43,9.78882769]
[1761944574179,0.67,187.47,187.44,5.33504054]
[1761944575923,4.00704688,187.47,187.43,9.78882769]
[1761944576306,0.72,187.46,187.43,9.78882769]
[1761944577317,0.72,187.46,187.43,71.58882769]
[1761944577993,0.72,187.46,187.41,3.33704688]
[1761944577994,0.72,187.46,187.41,5.33565226]
[1761944578208,7.26231703,187.45,187.41,5.33565226]
[1761944578399,3.33704688,187.45,187.41,5.33565226]
[1761944578602,0.72,187.44,187.41,5.33565226]
[1761944579916,0.72,187.44,187.41,8.67269914]
[1761944580689,0.72,187.44,187.41,5.33565226]
[1761944581930,0.72,187.44,187.4,5.33614983]
[1761944582099,0.72,187.44,187.4,8.67319671]
[1761944582701,4.05704688,187.44,187.4,5.33614983]
[1761944583110,0.72,187.43,187.4,5.33614983]
[1761944583531,0.72,187.43,187.37,3.33704688]
[1761944583532,4.05704688,187.43,187.37,3.33704688]
[1761944583714,3.33704688,187.42,187.37,9.78882769]
[1761944583913,10.73114064,187.42,187.37,9.78882769]
[1761944584114,0.72,187.41,187.37,9.78882769]
[1761944584514,0.72,187.41,187.37,15.12560219]
[1761944584934,0.72,187.42,187.38,4.02704688]
[1761944585114,0.72,187.41,187.38,3.33704688]
[1761944587049,0.72,187.41,187.39,5.33646405]
[1761944589247,0.72,187.41,187.39,18.46233862]
[1761944590752,0.72,187.41,187.39,5.33646405]
[1761944590951,0.72,187.41,187.38,67.13667741]
[1761944592633,0.72,187.41,187.38,61.8]
[1761944593655,0.72,187.41,187.38,67.13662625]
[1761944594360,0.72,187.41,187.38,61.8]
[1761944594564,0.72,187.41,187.37,5.3369931]
[1761944595556,0.72,187.41,187.37,8.67403998]
[1761944599170,0.72,187.41,187.37,5.3369931]
[1761944599352,0.72,187.41,187.37,8.67403998]
[1761944600230,0.72,187.41,187.38,3.33704688]
[1761944601460,0.72,187.41,187.39,5.33646405]
[1761944602655,0.72,187.41,187.38,8.67379573]
[1761944606082,0.72,187.41,187.38,5.33674885]
[1761944611055,3.91676065,187.43,187.4,3.33704688]
[1761944611254,0.67,187.45,187.42,3.33704688]
[1761944611485,0.67,187.44,187.42,3.33704688]
[1761944611675,3.92166212,187.45,187.42,3.33704688]
[1761944611851,3.92166212,187.45,187.44,3.33704688]
[1761944612052,0.67,187.47,187.44,3.33704688]
[1761944612677,0.67,187.47,187.44,8.67185513]
[1761944612678,4.59182512,187.47,187.44,8.67185513]
[1761944613371,0.67,187.46,187.44,7.47031753]
[1761944614257,4.59182512,187.46,187.44,7.47031753]
[1761944614483,0.67,187.46,187.44,7.47031753]
[1761944615258,3.92587309,187.45,187.44,7.47031753]
[1761944616966,27.84580753,187.5,187.44,7.47031753]
[1761944616967,0.67,187.48,187.44,8.15031753]
[1761944617283,3.9299856,187.47,187.45,2.13550928]
[1761944617587,3.9299856,187.46,187.45,7.47026521]
[1761944617771,3.9299856,187.46,187.45,5.33475593]
[1761944618487,0.67,187.48,187.45,5.33475593]
[1761944618683,3.93137224,187.47,187.45,5.33475593]
[1761944618883,0.67,187.48,187.45,5.33475593]
[1761944619069,4.60148624,187.47,187.45,5.33475593]
[1761944619263,0.67,187.49,187.45,69.27026521]
[1761944619470,3.93166919,187.48,187.45,8.15026521]
[1761944619780,3.93166919,187.47,187.45,8.15026521]
[1761944620087,0.67,187.49,187.45,8.15026521]
[1761944620272,3.93166996,187.48,187.45,8.15026521]
[1761944620473,3.93166996,187.47,187.45,8.15026521]
[1761944620666,0.67,187.49,187.45,8.15026521]
[1761944620994,3.93185164,187.48,187.45,7.47026521]
[1761944621193,3.93185164,187.47,187.45,7.47026521]
[1761944621395,0.67,187.49,187.45,7.47026521]
[1761944621578,3.93203846,187.48,187.45,7.47026521]
[1761944621888,3.93203846,187.47,187.45,7.47026521]
[1761944622089,20.592,187.5,187.44,7.47050476]
[1761944622090,3.93203846,187.46,187.44,7.47050476]
[1761944622286,0.67,187.49,187.44,7.47050476]
[1761944622498,3.93229239,187.48,187.44,7.47050476]
[1761944622801,3.93229239,187.47,187.44,7.47050476]
[1761944622967,3.93229239,187.46,187.44,7.47050476]
[1761944623167,0.67,187.48,187.44,7.47050476]
[1761944623401,3.93379571,187.47,187.44,7.47050476]
[1761944623689,3.93379571,187.46,187.44,7.47050476]
[1761944623891,0.67,187.48,187.44,7.47050476]
[1761944624081,3.9334184,187.47,187.44,7.47050476]
[1761944624286,3.9334184,187.46,187.44,7.47050476]
[1761944624522,0.67,187.48,187.44,7.47050476]
[1761944624814,3.93452367,187.47,187.44,7.47050476]